bitfinex/quotes_BTCUSD_20240718
["timestamp","ask_amount","ask_price","bid_price","bid_amount"]
[1721322003332,0.00834,63989.0,63988.0,1.96286881]
[1721322003774,0.00834,63989.0,63988.0,1.83309165]
[1721322004194,0.00834,63989.0,63988.0,1.69789165]
[1721322005311,0.00834,63989.0,63988.0,1.82767061]
[1721322006639,0.00834,63989.0,63988.0,1.96287061]
[1721322008162,0.00834,63989.0,63988.0,1.83309165]
[1721322008415,0.00834,63989.0,63988.0,1.9628706]
[1721322009738,0.00834,63989.0,63988.0,2.0128706]
[1721322009957,0.00834,63989.0,63988.0,1.9628706]
[1721322010613,0.14844,63989.0,63988.0,1.3147546]
[1721322010896,0.14844,63989.0,63988.0,0.80529391]
[1721322011050,0.14844,63989.0,63988.0,0.49273591]
[1721322011319,0.14844,63989.0,63988.0,0.027]
[1721322012483,0.14844,63989.0,63985.0,0.312569]
[1721322012484,0.1419,63988.0,63985.0,0.312569]
[1721322012719,0.1419,63988.0,63987.0,0.15628]
[1721322012937,0.1419,63988.0,63987.0,0.468843]
[1721322013827,0.21078997,63988.0,63987.0,0.468843]
[1721322014042,0.21078997,63988.0,63987.0,0.476843]
[1721322014482,0.21078997,63988.0,63987.0,0.16428]
[1721322014743,0.21078997,63988.0,63987.0,0.008]
[1721322015162,1.06181317,63988.0,63987.0,0.015]
[1721322015373,1.02595659,63988.0,63987.0,0.015]
[1721322016461,1.02595659,63988.0,63987.0,0.007]
[1721322017095,0.1438,63986.0,63976.0,0.156307]
[1721322017304,0.156294,63982.0,63981.0,0.07717479]
[1721322017517,0.06888997,63982.0,63981.0,0.07717479]
[1721322017732,0.21268997,63982.0,63981.0,0.07717479]
[1721322018414,0.36898297,63982.0,63981.0,0.07717479]
[1721322018815,0.21268997,63982.0,63981.0,0.07717479]
[1721322019732,0.312587,63982.0,63975.0,0.000913]
[1721322019955,0.1438,63979.0,63975.0,0.157223]
[1721322020237,0.1438,63978.0,63975.0,0.157223]
[1721322020467,0.1438,63978.0,63976.0,0.312617]
[1721322020712,0.1438,63978.0,63977.0,0.468918]
[1721322020972,0.0818,63982.0,63977.0,0.15438174]
[1721322021193,0.0656,63986.0,63985.0,0.156286]
[1721322021194,0.14232006,63986.0,63985.0,0.156286]
[1721322021447,0.14232006,63986.0,63985.0,0.468859]
[1721322021668,0.14232006,63986.0,63985.0,0.781432]
[1721322022601,0.14232006,63986.0,63985.0,0.783432]
[1721322024245,0.14232006,63986.0,63985.0,1.096005]
[1721322024463,0.07184,63989.0,63988.0,0.468837]
[1721322024683,0.00834,63989.0,63988.0,0.781395]
[1721322025158,0.00834,63989.0,63988.0,1.093953]
[1721322025851,0.00934,63989.0,63988.0,1.093953]
[1721322026860,0.00934,63989.0,63988.0,0.781395]
[1721322027091,0.219685,63986.0,63979.0,0.2253]
[1721322027313,0.219685,63986.0,63975.0,0.313534]
[1721322027314,0.1401,63985.0,63983.0,0.15629]
[1721322027552,0.1401,63985.0,63984.0,0.156289]
[1721322029166,0.1401,63985.0,63983.0,0.15629]
[1721322029407,0.1401,63985.0,63984.0,0.156289]
[1721322029889,0.1401,63985.0,63978.0,0.312607]
[1721322030170,0.1401,63985.0,63975.0,0.313533]
[1721322030171,0.156299,63980.0,63975.0,0.000913]
[1721322030369,0.00834,63989.0,63975.0,0.000913]
[1721322030370,0.149,63978.0,63975.0,0.000913]
[1721322030593,0.149,63978.0,63977.0,0.468918]
[1721322030836,0.149,63978.0,63977.0,0.78153]
[1721322031055,0.149,63978.0,63977.0,0.468918]
[1721322032717,0.149,63978.0,63977.0,0.477918]
[1721322032952,0.149,63978.0,63977.0,0.488918]
[1721322033217,0.149,63978.0,63977.0,0.176306]
[1721322033918,0.149,63978.0,63977.0,0.488918]
[1721322034723,0.149,63978.0,63977.0,0.477918]
[1721322034910,0.149,63978.0,63977.0,0.488918]
[1721322035192,0.0612,63982.0,63981.0,0.468888]
[1721322035411,0.0612,63982.0,63981.0,1.094072]
[1721322035637,0.082,63983.0,63982.0,0.781467]
[1721322037021,0.082,63983.0,63982.0,0.46888]
[1721322037952,0.082,63983.0,63982.0,0.156293]
[1721322038630,0.082,63983.0,63982.0,0.004]
[1721322038879,0.68050417,63983.0,63982.0,0.004]
[1721322039144,1.35309191,63983.0,63982.0,0.004]
[1721322039413,1.35309284,63983.0,63982.0,0.004]
[1721322039650,1.35309284,63983.0,63982.0,0.009]
[1721322039882,1.04050984,63983.0,63982.0,0.009]
[1721322040119,1.04050984,63983.0,63982.0,0.004]
[1721322040120,0.25905284,63983.0,63982.0,0.004]
[1721322040350,0.25905284,63983.0,63982.0,0.625174]
[1721322040605,0.25905284,63983.0,63982.0,0.46888]
[1721322040606,0.1427,63983.0,63982.0,0.46888]
[1721322041098,0.1437,63983.0,63982.0,0.46888]
[1721322041794,0.001,63983.0,63982.0,0.781467]
[1721322042488,0.002,63983.0,63982.0,0.781467]
[1721322042709,0.00083,63986.0,63984.0,0.156287]
[1721322042951,0.06892787,63985.0,63984.0,0.156287]
[1721322043188,0.06892787,63985.0,63982.0,0.317587]
[1721322043402,0.06892787,63985.0,63982.0,0.161291]
[1721322043623,0.04747365,63984.0,63982.0,0.005]
[1721322043847,0.12807365,63984.0,63982.0,0.009]
[1721322044079,0.11640152,63983.0,63982.0,0.004]
[1721322044588,0.72959427,63983.0,63982.0,0.004]
[1721322044803,1.12277727,63983.0,63982.0,0.004]
[1721322045258,1.12277727,63983.0,63975.0,0.003707]
[1721322045259,0.25850152,63983.0,63978.0,0.156302]
[1721322045537,0.04747365,63982.0,63979.0,0.07717479]
[1721322045803,0.04747365,63982.0,63979.0,0.23347479]
[1721322045804,0.06892787,63982.0,63979.0,0.23347479]
[1721322046024,0.06892787,63982.0,63975.0,0.000913]
[1721322046025,0.13699966,63982.0,63976.0,0.312615]
[1721322046251,0.11604086,63981.0,63979.0,0.07717479]
[1721322046483,0.1421,63983.0,63979.0,0.23347579]
[1721322046484,0.11604098,63980.0,63979.0,0.23347579]
[1721322046709,0.11604098,63980.0,63978.0,0.156302]
[1721322046966,0.156294,63982.0,63977.0,0.312609]
[1721322046967,0.11604098,63979.0,63977.0,0.156305]
[1721322047188,0.06892787,63978.0,63977.0,0.156305]
[1721322047407,0.06892787,63978.0,63975.0,0.157223]
[1721322047627,0.0924377,63981.0,63975.0,0.000913]
[1721322047628,0.1421,63977.0,63975.0,0.000913]
[1721322047848,0.21102787,63977.0,63975.0,0.000913]
[1721322048539,0.06892787,63976.0,63975.0,0.000913]
[1721322050921,0.7991286,63976.0,63975.0,0.006913]
[1721322051140,1.03450874,63976.0,63975.0,0.006913]
[1721322051581,1.23564307,63976.0,63975.0,0.013913]
[1721322051801,1.64826007,63976.0,63975.0,0.000913]
[1721322052029,1.80291526,63976.0,63975.0,0.000913]
[1721322052246,1.80491526,63976.0,63975.0,0.000913]
[1721322052462,1.65056569,63976.0,63975.0,0.000913]
[1721322052688,0.35525648,63976.0,63975.0,0.000913]
[1721322052912,0.35525648,63976.0,63975.0,0.005913]
[1721322052913,0.82418148,63976.0,63975.0,0.005913]
[1721322053650,0.82418148,63976.0,63975.0,0.000913]
[1721322054115,0.94755168,63976.0,63975.0,0.000913]
[1721322054332,1.26016868,63976.0,63975.0,0.000913]
[1721322054559,1.26216868,63976.0,63975.0,0.001913]
[1721322054786,1.26016868,63976.0,63975.0,0.000913]
[1721322055021,0.94755168,63976.0,63975.0,0.000913]
[1721322055296,0.51140003,63976.0,63975.0,0.000913]
[1721322055529,0.51340003,63976.0,63975.0,0.001913]
[1721322056245,0.25509203,63976.0,63975.0,0.000913]
[1721322056719,0.43890923,63976.0,63975.0,0.000913]
[1721322057215,0.25709203,63976.0,63975.0,0.000913]
[1721322058400,0.25722659,63976.0,63975.0,0.000913]
[1721322060254,0.19682659,63976.0,63975.0,0.157224]
[1721322060490,0.19482659,63976.0,63975.0,0.000913]
[1721322060941,0.14992787,63976.0,63975.0,0.000913]
[1721322061183,0.19473137,63976.0,63975.0,0.157224]
[1721322061418,0.32083038,63976.0,63975.0,0.157224]
[1721322061643,0.32083038,63976.0,63975.0,0.000913]
[1721322061864,0.47713838,63976.0,63975.0,0.000913]
[1721322062108,0.2432464,63976.0,63975.0,0.000913]
[1721322063489,0.4611544,63976.0,63975.0,0.000913]
[1721322063962,0.41463937,63976.0,63975.0,0.000913]
[1721322064202,0.4613611,63976.0,63975.0,0.000913]
[1721322064437,0.4145576,63976.0,63975.0,0.000913]
[1721322064726,0.53960072,63976.0,63975.0,0.000913]
[1721322065160,0.85221772,63976.0,63975.0,0.000913]
[1721322066523,0.7271746,63976.0,63975.0,0.000913]
[1721322066993,1.19417334,63976.0,63975.0,0.000913]
[1721322067218,1.14745161,63976.0,63975.0,0.000913]
[1721322067488,1.19424169,63976.0,63975.0,0.000913]
[1721322067712,0.16652495,63976.0,63975.0,0.469846]
[1721322067944,0.11971731,63976.0,63975.0,0.469846]
[1721322069551,0.07292787,63976.0,63975.0,0.469846]
[1721322070944,0.07092787,63976.0,63975.0,0.469846]
[1721322071179,0.06892787,63976.0,63975.0,0.473846]
[1721322071424,0.07021191,63984.0,63981.0,0.468888]
[1721322071425,0.06892787,63982.0,63981.0,0.468888]
[1721322071640,0.14974191,63986.0,63975.0,0.322535]
[1721322071641,0.00083,63986.0,63983.0,0.07717479]
[1721322071891,0.00083,63986.0,63985.0,0.156286]
[1721322072115,0.11751579,63986.0,63985.0,0.468859]
[1721322072391,0.06976822,63986.0,63985.0,0.468859]
[1721322072874,0.11726085,63986.0,63985.0,0.468859]
[1721322073341,0.16976822,63986.0,63985.0,0.468859]
[1721322073790,0.21712265,63986.0,63985.0,0.468859]
[1721322074013,0.16976822,63986.0,63985.0,0.468859]
[1721322074463,0.16976822,63986.0,63985.0,0.470859]
[1721322074920,0.16976822,63986.0,63985.0,0.473859]
[1721322075842,0.06976822,63986.0,63985.0,0.473859]
[1721322076317,0.06976822,63986.0,63985.0,0.161286]
[1721322076540,0.06976822,63986.0,63985.0,0.005]
[1721322076765,0.15466409,63986.0,63985.0,0.005]
[1721322076988,0.25466409,63986.0,63985.0,0.005]
[1721322077439,0.4446902,63986.0,63985.0,0.005]
[1721322077688,0.86671609,63986.0,63985.0,0.005]
[1721322077910,0.93695526,63986.0,63985.0,0.005]
[1721322078350,1.24952326,63986.0,63985.0,0.005]
[1721322078571,0.156293,63983.0,63977.0,0.159099]
[1721322078799,0.39769617,63982.0,63977.0,0.156305]
[1721322079022,0.06893822,63981.0,63977.0,0.312611]
[1721322079247,0.06893822,63981.0,63978.0,0.156303]
[1721322079699,0.06893822,63981.0,63977.0,0.156305]
[1721322081296,0.06893822,63981.0,63977.0,0.003]
[1721322081537,0.06893822,63983.0,63978.0,0.312607]
[1721322081763,0.10083,63986.0,63985.0,0.156286]
[1721322081986,0.06975332,63986.0,63985.0,0.156286]
[1721322082880,0.06975332,63986.0,63984.0,0.156288]
[1721322083351,0.06892332,63985.0,63984.0,0.156288]
[1721322084282,0.11136294,63985.0,63982.0,0.312585]
[1721322084513,0.11136294,63985.0,63983.0,0.156289]
[1721322084514,0.06892332,63984.0,63983.0,0.156289]
[1721322085009,0.1471,63983.0,63980.0,0.156297]
[1721322085255,0.06892332,63982.0,63980.0,0.156297]
[1721322085486,0.06892332,63982.0,63978.0,0.312607]
[1721322085717,0.06892332,63982.0,63976.0,0.07717479]
[1721322085718,0.22521732,63982.0,63976.0,0.07717479]
[1721322085949,0.06892332,63981.0,63976.0,0.07717479]
[1721322086190,0.06892332,63981.0,63975.0,0.000913]
[1721322086191,0.156307,63977.0,63975.0,0.000913]
[1721322086409,0.39940327,63976.0,63975.0,0.000913]
[1721322086636,0.39924351,63976.0,63975.0,0.000913]
[1721322086866,0.24310206,63976.0,63975.0,0.000913]
[1721322087096,0.22796708,63976.0,63975.0,0.000913]
[1721322087322,0.22796657,63976.0,63975.0,0.000913]
[1721322087607,0.06892332,63976.0,63975.0,0.000913]
[1721322087845,0.06892332,63977.0,63976.0,0.156308]
[1721322088072,0.16894485,63980.0,63976.0,0.07717479]
[1721322088301,0.11670716,63979.0,63978.0,0.005]
[1721322088760,0.11670716,63979.0,63977.0,0.156305]
[1721322088994,0.06894616,63978.0,63977.0,0.156305]
[1721322089246,0.06894616,63981.0,63977.0,0.468917]
[1721322089474,0.50651704,63984.0,63976.0,0.07717479]
[1721322089475,0.06893434,63980.0,63979.0,0.1563]
[1721322089699,0.06893434,63983.0,63981.0,0.156294]
[1721322089917,0.06893425,63983.0,63981.0,0.156294]
[1721322090382,0.06893425,63983.0,63979.0,0.312602]
[1721322090383,0.06893425,63983.0,63982.0,0.156293]
[1721322090605,0.06893425,63985.0,63982.0,0.156293]
[1721322091498,0.04688889,63984.0,63982.0,0.156293]
[1721322091722,0.06893425,63983.0,63982.0,0.156293]
[1721322092167,0.04688871,63983.0,63982.0,0.156293]
[1721322092390,0.04688871,63983.0,63979.0,0.312602]
[1721322092391,0.156295,63982.0,63976.0,0.156306]
[1721322092643,0.156295,63982.0,63981.0,0.006]
[1721322092644,0.156293,63982.0,63981.0,0.006]
[1721322092862,0.20335722,63982.0,63981.0,0.006]
[1721322093108,0.43157616,63982.0,63981.0,0.006]
[1721322093329,0.11599265,63982.0,63978.0,0.156302]
[1721322093571,0.11599265,63982.0,63978.0,0.15438174]
[1721322093800,0.00083,63986.0,63985.0,0.468859]
[1721322094032,0.00083,63986.0,63985.0,1.47136153]
[1721322094269,0.00083,63986.0,63985.0,1.80693453]
[1721322094728,0.00083,63986.0,63985.0,1.49436153]
[1721322096072,0.00083,63986.0,63985.0,1.50836153]
[1721322096533,0.00083,63986.0,63985.0,1.52236153]
[1721322097419,0.00083,63986.0,63985.0,1.50836153]
[1721322098526,0.00083,63986.0,63985.0,1.49436153]
[1721322099193,0.00083,63986.0,63985.0,1.50836153]
[1721322099867,0.00083,63986.0,63985.0,1.52236153]
[1721322100132,0.00083,63986.0,63985.0,1.53636153]
[1721322100363,0.00083,63986.0,63985.0,0.198286]
[1721322100585,0.00083,63986.0,63985.0,0.510859]
[1721322100821,0.00083,63986.0,63985.0,0.042]
[1721322101038,0.0486295,63986.0,63985.0,0.042]
[1721322101953,0.00083,63986.0,63985.0,0.184286]
[1721322102200,0.00083,63986.0,63985.0,0.04]
[1721322102433,0.00083,63986.0,63985.0,0.012]
[1721322102958,0.00083,63986.0,63985.0,0.025]
[1721322103858,0.00083,63986.0,63985.0,0.181286]
[1721322104786,0.00083,63986.0,63985.0,0.025]
[1721322106160,0.302614,63986.0,63985.0,0.025]
[1721322106383,0.99664798,63986.0,63985.0,0.025]
[1721322106611,0.72914229,63986.0,63985.0,0.025]
[1721322107069,0.156287,63985.0,63982.0,0.000913]
[1721322107305,0.22518698,63984.0,63982.0,0.000913]
[1721322107527,0.06889798,63983.0,63982.0,0.000913]
[1721322108975,0.58999966,63983.0,63982.0,0.000913]
[1721322109226,0.94791655,63983.0,63982.0,0.000913]
[1721322110121,0.94991655,63983.0,63982.0,0.005913]
[1721322110369,0.27252287,63983.0,63982.0,0.005913]
[1721322110680,0.58510587,63983.0,63982.0,0.005913]
[1721322110764,0.58410587,63983.0,63982.0,0.005913]
[1721322110991,0.54077198,63983.0,63982.0,0.000913]
[1721322111209,0.55838189,63983.0,63982.0,0.000913]
[1721322111431,0.55938189,63983.0,63982.0,0.000913]
[1721322111652,0.60498673,63983.0,63982.0,0.000913]
[1721322111896,0.64959158,63983.0,63982.0,0.000913]
[1721322112584,0.64759158,63983.0,63982.0,0.000913]
[1721322112820,0.64759158,63983.0,63982.0,0.001913]
[1721322114154,0.64759158,63983.0,63982.0,0.003913]
[1721322114572,0.64793054,63983.0,63982.0,0.003913]
[1721322116448,0.96051354,63983.0,63982.0,0.003913]
[1721322117344,0.31773763,63983.0,63982.0,0.003913]
[1721322117565,0.27179383,63983.0,63982.0,0.003913]
[1721322118004,0.11550283,63983.0,63982.0,0.003913]
[1721322118284,0.11550283,63983.0,63982.0,0.537593]
[1721322118515,0.04660485,63983.0,63982.0,0.84918]
[1721322118744,0.04560485,63983.0,63982.0,0.84718]
[1721322119640,0.04560485,63983.0,63982.0,1.62673574]
[1721322119862,0.04560485,63983.0,63982.0,1.72763574]
[1721322121070,0.04660485,63983.0,63982.0,1.95293574]
[1721322122246,0.04560485,63983.0,63982.0,1.95293574]
[1721322122689,0.04560485,63983.0,63982.0,1.63034874]
[1721322122909,0.04760485,63983.0,63982.0,1.63034874]
[1721322123135,0.04760485,63983.0,63982.0,1.65334874]
[1721322123582,0.04760485,63983.0,63982.0,1.96593574]
[1721322124311,0.04760485,63983.0,63982.0,2.01593574]
[1721322124532,0.04760485,63983.0,63982.0,1.96593574]
[1721322125004,0.04560485,63983.0,63982.0,1.96593574]
[1721322125455,0.04560485,63983.0,63982.0,1.95293574]
[1721322125988,0.04560485,63983.0,63982.0,1.96693574]
[1721322126667,0.04560485,63983.0,63982.0,1.97893574]
[1721322126904,0.00083,63986.0,63985.0,1.094005]
[1721322127146,0.00083,63986.0,63985.0,1.27138674]
[1721322128030,0.00083,63986.0,63985.0,1.24838674]
[1721322128977,0.00083,63986.0,63985.0,1.26238674]
[1721322129779,0.00083,63986.0,63985.0,1.71475974]
[1721322129981,0.00083,63986.0,63985.0,1.73775974]
[1721322130773,0.00083,63986.0,63985.0,1.75175974]
[1721322130969,0.00083,63986.0,63985.0,1.85175974]
[1721322131415,0.00083,63986.0,63985.0,1.88308974]
[1721322132080,0.00083,63986.0,63985.0,1.86908974]
[1721322132521,0.00083,63986.0,63985.0,1.88308974]
[1721322133169,0.00083,63986.0,63985.0,2.19566274]
[1721322133685,0.00083,63986.0,63985.0,2.18166274]
[1721322133918,0.00083,63986.0,63985.0,2.24566274]
[1721322135950,0.00083,63986.0,63985.0,2.37543529]
[1721322136161,0.00083,63986.0,63985.0,2.24566274]
[1721322136838,0.00083,63986.0,63985.0,2.32283753]
[1721322140724,0.00083,63986.0,63985.0,2.27283753]
[1721322141181,0.00083,63986.0,63985.0,2.32283753]
[1721322141490,0.00083,63986.0,63985.0,2.27283753]
[1721322141702,0.00083,63986.0,63985.0,2.32283753]
[1721322144175,0.00834,63989.0,63988.0,1.769069]
[1721322144412,0.00834,63989.0,63988.0,2.54582056]
[1721322144631,0.00833,63993.0,63992.0,1.288186]
[1721322144845,0.00833,63993.0,63992.0,2.09064574]
[1721322145062,0.00833,63993.0,63992.0,2.19064574]
[1721322145993,0.00833,63993.0,63992.0,2.14064574]
[1721322146217,0.00833,63993.0,63992.0,1.87503022]
[1721322146451,0.00833,63993.0,63992.0,1.65580674]
[1721322147356,0.00833,63993.0,63992.0,2.10714574]
[1721322147808,0.00833,63993.0,63992.0,2.13014574]
[1721322148033,0.00833,63993.0,63992.0,1.77714674]
[1721322148464,0.00833,63993.0,63992.0,1.76314674]
[1721322149196,0.15233,63993.0,63992.0,0.94472874]
[1721322149688,0.15233,63993.0,63992.0,1.27126774]
[1721322149919,0.00833,63993.0,63992.0,1.27126774]
[1721322150601,0.00833,63993.0,63992.0,1.25726774]
[1721322150841,0.00833,63993.0,63992.0,1.58380674]
[1721322151064,0.00833,63993.0,63992.0,1.62080674]
[1721322151309,0.00833,63993.0,63992.0,1.60680674]
[1721322151544,0.00833,63993.0,63992.0,1.70370674]
[1721322151793,0.00833,63993.0,63992.0,1.80370674]
[1721322152498,0.00833,63993.0,63992.0,1.86830674]
[1721322152735,0.00833,63993.0,63992.0,1.91830674]
[1721322153455,0.00833,63993.0,63992.0,2.36061008]
[1721322154415,1e-06,63996.0,63995.0,1.768882]
[1721322154646,0.00834,64010.0,64009.0,0.78114]
[1721322154859,0.00834,64010.0,64009.0,1.88590853]
[1721322155349,0.1397,64018.0,64016.0,1.405894]
[1721322155350,0.00334,64017.0,64016.0,1.405894]
[1721322155579,0.00334,64017.0,64016.0,1.98575053]
[1721322156073,0.00334,64017.0,64016.0,1.67332953]
[1721322156525,0.00334,64017.0,64016.0,1.98575053]
[1721322156816,0.00334,64017.0,64016.0,1.99775053]
[1721322157265,0.00334,64017.0,64016.0,1.68532953]
[1721322158189,0.00334,64017.0,64016.0,1.99775053]
[1721322158891,0.00334,64017.0,64016.0,2.00775053]
[1721322159130,0.00334,64017.0,64016.0,2.37017153]
[1721322159386,0.00334,64017.0,64016.0,2.00775053]
[1721322159626,0.00334,64017.0,64016.0,2.05775053]
[1721322160836,0.00334,64017.0,64016.0,2.00775053]
[1721322161998,0.00334,64017.0,64016.0,2.32017153]
[1721322162217,0.00334,64017.0,64016.0,2.00775053]
[1721322162634,0.00334,64017.0,64016.0,2.32017153]
[1721322162903,0.00334,64017.0,64016.0,2.37017153]
[1721322164006,0.00334,64017.0,64016.0,2.05775053]
[1721322164785,0.00334,64017.0,64016.0,2.37017153]
[1721322166840,1e-08,64018.0,64017.0,1.768293]
[1721322167063,1e-08,64018.0,64017.0,2.07700474]
[1721322167310,0.0144173,64028.0,64027.0,1.093288]
[1721322167512,0.0144173,64028.0,64027.0,1.90833774]
[1721322168813,0.0144173,64028.0,64027.0,1.95833774]
[1721322169024,0.00834,64033.0,64032.0,1.405543]
[1721322169272,0.00834,64033.0,64032.0,1.89526774]
[1721322169486,0.00834,64033.0,64032.0,1.94526774]
[1721322169730,0.00834,64033.0,64032.0,1.58265287]
[1721322170401,0.15084,64033.0,64032.0,1.24730987]
[1721322171529,0.15084,64033.0,64032.0,1.26130987]
[1721322172087,0.15084,64033.0,64032.0,1.27530987]
[1721322172218,0.15084,64033.0,64032.0,1.29830987]
[1721322172877,0.15084,64033.0,64032.0,0.65089574]
[1721322173541,0.15084,64033.0,64032.0,0.96323874]
[1721322174438,0.15084,64033.0,64032.0,1.27558174]
[1721322174676,0.00834,64033.0,64032.0,1.61092474]
[1721322175613,0.00834,64033.0,64032.0,1.29858174]
[1721322176113,0.00834,64033.0,64032.0,1.61092474]
[1721322176345,0.00834,64033.0,64032.0,1.59692474]
[1721322176807,0.00834,64033.0,64032.0,1.61092474]
[1721322177486,0.00834,64033.0,64032.0,1.62492474]
[1721322177724,0.00834,64033.0,64032.0,1.61092474]
[1721322178181,0.00834,64033.0,64032.0,1.62492474]
[1721322178656,0.00834,64033.0,64032.0,1.61092474]
[1721322178840,0.00834,64033.0,64032.0,1.62492474]
[1721322179095,0.00834,64033.0,64032.0,1.67492474]
[1721322179314,0.00834,64033.0,64032.0,1.98726774]
[1721322180048,0.00834,64033.0,64032.0,1.97326774]
[1721322180277,0.00834,64033.0,64032.0,2.05926774]
[1721322180509,0.00834,64033.0,64032.0,2.02326774]
[1721322181201,0.00834,64033.0,64032.0,1.71092474]
[1721322181696,0.15214,64033.0,64032.0,1.27558174]
[1721322182379,0.15214,64033.0,64032.0,0.33855274]
[1721322182380,0.167354,64033.0,64032.0,0.33855274]
[1721322182631,0.167354,64033.0,64032.0,0.028]
[1721322182632,0.323523,64033.0,64032.0,0.028]
[1721322182882,0.323523,64033.0,64032.0,0.014]
[1721322182883,0.14714,64033.0,64032.0,0.014]
[1721322183103,0.771816,64033.0,64032.0,0.014]
[1721322183322,0.927985,64033.0,64032.0,0.028]
[1721322183571,1.08865243,64033.0,64032.0,0.028]
[1721322183810,0.35199306,64033.0,64032.0,0.028]
[1721322184294,0.14714,64033.0,64032.0,0.496514]
[1721322184515,0.14714,64033.0,64032.0,1.26158174]
[1721322184987,0.08214,64033.0,64032.0,1.26858174]
[1721322185225,0.08214,64033.0,64032.0,1.29158174]
[1721322185443,0.00334,64033.0,64032.0,1.27058174]
[1721322185660,0.00334,64033.0,64032.0,1.50288174]
[1721322185883,0.00334,64033.0,64032.0,1.51688174]
[1721322186101,0.00334,64033.0,64032.0,1.50288174]
[1721322186329,0.00334,64033.0,64032.0,1.49588174]
[1721322186564,0.00334,64033.0,64032.0,1.50988174]
[1721322186784,0.00334,64033.0,64032.0,1.49588174]
[1721322187239,0.00334,64033.0,64032.0,1.50988174]
[1721322187749,0.00334,64033.0,64032.0,0.94923874]
[1721322188660,0.14884,64033.0,64032.0,0.014]
[1721322188876,0.38850387,64033.0,64032.0,0.028]
[1721322189150,0.70084187,64033.0,64032.0,0.028]
[1721322189364,0.75026344,64033.0,64032.0,0.028]
[1721322189589,0.21745087,64033.0,64032.0,0.184171]
[1721322189804,0.21745087,64033.0,64032.0,0.96323874]
[1721322190015,0.21745087,64033.0,64032.0,0.94923874]
[1721322190232,0.21745087,64033.0,64032.0,0.93523874]
[1721322190451,0.21745087,64033.0,64032.0,0.64289574]
[1721322190907,0.25481166,64033.0,64032.0,0.02]
[1721322191348,0.73686471,64033.0,64032.0,0.02]
[1721322191789,0.73686471,64033.0,64032.0,0.011]
[1721322192015,0.26835771,64033.0,64032.0,0.011]
[1721322192245,0.26755295,64033.0,64032.0,0.175171]
[1721322192491,0.21745087,64033.0,64032.0,0.183171]
[1721322192956,0.08444,64033.0,64032.0,1.27458174]
[1721322193196,0.08444,64033.0,64032.0,1.25858174]
[1721322193433,0.15305959,64033.0,64032.0,1.26758174]
[1721322193669,0.08444,64033.0,64032.0,1.26758174]
[1721322193888,0.08444,64033.0,64032.0,1.26658174]
[1721322194363,0.15305749,64033.0,64032.0,1.26658174]
[1721322194814,0.08444,64033.0,64032.0,1.26658174]
[1721322195591,0.08444,64033.0,64032.0,1.25658174]
[1721322195811,0.08444,64033.0,64032.0,1.24758174]
[1721322196239,0.08444,64033.0,64032.0,1.26658174]
[1721322196739,0.08444,64033.0,64032.0,1.25858174]
[1721322196972,0.08444,64033.0,64032.0,0.94623874]
[1721322197433,0.08444,64033.0,64032.0,0.93523874]
[1721322197693,0.08444,64033.0,64032.0,0.94423874]
[1721322197910,0.08444,64033.0,64032.0,1.25658174]
[1721322198831,0.08444,64033.0,64032.0,1.27058174]
[1721322199049,0.08444,64033.0,64032.0,1.25658174]
[1721322199273,0.08444,64033.0,64032.0,1.27058174]
[1721322199464,0.08444,64033.0,64032.0,1.28458174]
[1721322199717,0.08444,64033.0,64032.0,1.27058174]
[1721322200154,0.08444,64033.0,64032.0,1.28458174]
[1721322201260,0.08444,64033.0,64032.0,0.97223874]
[1721322202008,0.08444,64033.0,64032.0,0.505514]
[1721322202249,0.1530489,64033.0,64032.0,0.505514]
[1721322203858,0.2130489,64033.0,64032.0,0.037]
[1721322204375,0.2130489,64033.0,64032.0,0.505514]
[1721322204591,0.2130489,64033.0,64032.0,0.194084]
[1721322205021,0.2130489,64033.0,64032.0,0.506427]
[1721322206105,0.2130489,64033.0,64032.0,0.194084]
[1721322206330,0.2130489,64033.0,64032.0,0.506427]
[1721322207922,0.41081869,64033.0,64032.0,0.037913]
[1721322208153,0.2130489,64033.0,64032.0,0.037913]
[1721322208375,0.26425792,64033.0,64032.0,0.037913]
[1721322209257,0.2130489,64033.0,64032.0,0.506427]
[1721322211402,0.2130489,64033.0,64032.0,0.037913]
[1721322211642,0.46196776,64033.0,64032.0,0.037913]
[1721322211896,0.420367,64033.0,64032.0,0.037913]
[1721322212122,0.264198,64033.0,64032.0,0.037913]
[1721322212354,0.420367,64033.0,64032.0,0.037913]
[1721322212590,0.420367,64033.0,64032.0,0.023913]
[1721322212835,0.732705,64033.0,64032.0,0.023913]
[1721322213081,0.89570389,64033.0,64032.0,0.032913]
[1721322213315,0.77950139,64033.0,64032.0,0.009913]
[1721322213520,0.46716339,64033.0,64032.0,0.009913]
[1721322213790,0.420367,64033.0,64032.0,0.009913]
[1721322214285,0.46716185,64033.0,64032.0,0.017913]
[1721322214527,0.77949985,64033.0,64032.0,0.017913]
[1721322214765,0.82135069,64033.0,64032.0,0.017913]
[1721322215217,0.8213507,64033.0,64032.0,0.017913]
[1721322215473,1.18048135,64033.0,64032.0,0.017913]
[1721322215723,1.73639425,64033.0,64032.0,0.017913]
[1721322215948,2.14873225,64033.0,64032.0,0.017913]
[1721322216862,2.0987356,64033.0,64032.0,0.017913]
[1721322217090,2.14873225,64033.0,64032.0,0.017913]
[1721322217317,2.0987356,64033.0,64032.0,0.008913]
[1721322217529,2.00982118,64033.0,64032.0,0.008913]
[1721322217751,1.9625504,64033.0,64032.0,0.009913]
[1721322218275,2.01369161,64033.0,64032.0,0.008913]
[1721322218493,2.01369161,64033.0,64032.0,0.000913]
[1721322218711,2.17104118,64033.0,64032.0,0.001913]
[1721322219371,2.01869161,64033.0,64032.0,0.001913]
[1721322219594,2.02269161,64033.0,64032.0,0.002913]
[1721322220052,2.07268826,64033.0,64032.0,0.002913]
[1721322220279,2.07268826,64033.0,64032.0,0.000913]
[1721322220280,2.06068826,64033.0,64032.0,0.000913]
[1721322220502,2.06568826,64033.0,64032.0,0.001913]